bitfinex/quotes_BTCUSD_20241018
["timestamp","ask_amount","ask_price","bid_price","bid_amount"]
[1729252533315,0.020654,67761.0,67760.0,0.054823]
[1729252533544,0.020654,67761.0,67760.0,0.01059405]
[1729252534366,0.020654,67761.0,67760.0,0.0548221]
[1729252534591,0.168231,67761.0,67760.0,0.0548221]
[1729252534794,0.020654,67761.0,67760.0,0.0548221]
[1729252535004,0.020654,67761.0,67760.0,0.01059405]
[1729252535217,0.168231,67761.0,67760.0,0.01059405]
[1729252535664,0.168231,67761.0,67760.0,0.05482375]
[1729252536296,0.168231,67761.0,67760.0,0.05482436]
[1729252536504,0.168231,67761.0,67760.0,0.01059405]
[1729252539016,0.168231,67761.0,67760.0,0.05482436]
[1729252540382,0.168231,67761.0,67760.0,0.05482897]
[1729252541851,0.020654,67761.0,67760.0,0.05482897]
[1729252542498,0.168231,67761.0,67760.0,0.01059866]
[1729252542915,0.020654,67761.0,67760.0,0.01059866]
[1729252543512,0.168231,67761.0,67760.0,0.01059866]
[1729252543720,0.168231,67761.0,67760.0,0.15817766]
[1729252543721,0.020654,67761.0,67760.0,0.15817766]
[1729252543934,0.020654,67761.0,67760.0,0.01059866]
[1729252544088,0.168231,67761.0,67760.0,0.01059866]
[1729252548543,0.168231,67761.0,67760.0,0.01060049]
[1729252548755,0.168231,67761.0,67760.0,0.0769677]
[1729252551495,0.168231,67761.0,67760.0,0.07698178]
[1729252555835,0.168231,67761.0,67760.0,0.01060049]
[1729252556327,0.168231,67761.0,67760.0,0.0106032]
[1729252557528,0.168231,67761.0,67760.0,0.02607934]
[1729252560131,0.168231,67761.0,67760.0,0.0106032]
[1729252560354,0.168231,67761.0,67760.0,0.07700522]
[1729252560851,0.168231,67761.0,67760.0,0.07700621]
[1729252561086,0.168231,67761.0,67760.0,0.0106032]
[1729252561396,0.168231,67761.0,67760.0,0.05487207]
[1729252561596,0.168231,67761.0,67760.0,0.0106032]
[1729252570015,0.36318633,67761.0,67760.0,0.0106032]
[1729252570226,0.46598633,67761.0,67760.0,0.0106032]
[1729252570436,0.350631,67761.0,67760.0,0.0009339]
[1729252570663,0.46598633,67761.0,67760.0,0.0009339]
[1729252580718,0.62896386,67761.0,67760.0,0.0009339]
[1729252580930,0.77792301,67761.0,67760.0,0.0009339]
[1729252581139,0.78292301,67761.0,67760.0,0.0009339]
[1729252582034,0.77292301,67761.0,67760.0,0.0009339]
[1729252582508,0.77792301,67761.0,67760.0,0.0009339]
[1729252582748,0.79192301,67761.0,67760.0,0.0009339]
[1729252584447,0.80115338,67761.0,67760.0,0.0009339]
[1729252585285,0.86348763,67761.0,67760.0,0.0009339]
[1729252585494,0.80115338,67761.0,67760.0,0.0009339]
[1729252585704,0.52782052,67761.0,67760.0,0.0009339]
[1729252585908,0.75853118,67761.0,67760.0,0.0009339]
[1729252586123,0.364631,67761.0,67760.0,0.0009339]
[1729252586327,0.51359015,67761.0,67760.0,0.0009339]
[1729252586543,0.56121235,67761.0,67760.0,0.0009339]
[1729252586964,0.80551949,67761.0,67760.0,0.0009339]
[1729252587173,0.67656768,67761.0,67760.0,0.0009339]
[1729252589062,0.347479,67760.0,67759.0,8.7e-07]
[1729252589274,0.65347721,67760.0,67759.0,8.7e-07]
[1729252590115,0.025,67752.0,67751.0,0.000827]
[1729252590361,0.94792386,67752.0,67751.0,0.000827]
[1729252590540,0.94792386,67752.0,67730.0,0.006]
[1729252590541,0.27299133,67734.0,67733.0,0.20261536]
[1729252590752,0.35089133,67734.0,67733.0,0.20261536]
[1729252591176,0.35089133,67734.0,67730.0,0.006]
[1729252591177,0.147642,67731.0,67730.0,0.006]
[1729252592553,0.153642,67731.0,67730.0,0.006]
[1729252592788,0.147642,67731.0,67730.0,0.006]
[1729252593753,0.26299733,67731.0,67730.0,0.006]
[1729252594240,0.27699733,67731.0,67730.0,0.006]
[1729252595004,0.161642,67731.0,67730.0,0.006]
[1729252598089,0.161642,67731.0,67730.0,0.006828]
[1729252605614,0.27699733,67731.0,67730.0,0.006828]
[1729252608003,0.27703733,67731.0,67730.0,0.006828]
[1729252611707,0.27594035,67731.0,67730.0,0.006828]
[1729252618407,0.16058502,67731.0,67730.0,0.01650096]
[1729252619346,0.01404,67731.0,67730.0,0.01650096]
[1729252620036,0.01404,67731.0,67730.0,0.12778271]
[1729252620265,0.01404,67731.0,67730.0,0.27838027]
[1729252620730,0.01404,67731.0,67730.0,0.13073527]
[1729252620975,0.01404,67731.0,67730.0,0.27838027]
[1729252621203,0.01404,67731.0,67730.0,0.27839096]
[1729252622154,0.01404,67731.0,67730.0,0.13074596]
[1729252622384,0.01404,67731.0,67730.0,0.1277934]
[1729252623550,0.01404,67731.0,67730.0,0.12777659]
[1729252623789,0.01404,67731.0,67730.0,0.03197659]
[1729252624028,0.01404,67731.0,67730.0,0.01650034]
[1729252624829,0.12939533,67731.0,67730.0,0.01650034]
[1729252627143,0.12939533,67731.0,67730.0,0.01649941]
[1729252629160,0.27703733,67731.0,67730.0,0.01649941]
[1729252630905,0.27703733,67731.0,67730.0,0.006828]
[1729252631137,0.27703733,67731.0,67730.0,0.01649954]
[1729252632227,0.27703733,67731.0,67730.0,0.06074732]
[1729252632456,0.27703733,67731.0,67730.0,0.01649954]
[1729252632887,0.27703733,67731.0,67730.0,0.06076077]
[1729252633098,0.27703733,67731.0,67730.0,0.01649954]
[1729252634237,0.27703733,67731.0,67730.0,0.08290932]
[1729252634476,0.27869333,67731.0,67730.0,0.08290932]
[1729252635135,0.27869333,67731.0,67730.0,0.01649954]
[1729252635989,0.28369333,67731.0,67730.0,0.01649954]
[1729252638648,0.28369333,67731.0,67730.0,0.006828]
[1729252638858,0.28369333,67731.0,67730.0,0.01650032]
[1729252639513,0.28369333,67731.0,67730.0,0.1050467]
[1729252642811,0.28369333,67731.0,67730.0,0.10504726]
[1729252644879,0.28369333,67731.0,67730.0,0.01650088]
[1729252645323,0.28369333,67731.0,67730.0,0.10504726]
[1729252645544,0.168338,67731.0,67730.0,0.10504726]
[1729252645769,0.28369333,67731.0,67730.0,0.01650088]
[1729252645991,0.28369333,67731.0,67730.0,0.10504726]
[1729252646676,0.28369333,67731.0,67730.0,0.10509457]
[1729252646879,0.28369333,67731.0,67730.0,0.09542169]
[1729252647086,0.28369333,67731.0,67730.0,0.10509512]
[1729252647962,0.168338,67731.0,67730.0,0.10509512]
[1729252649073,0.015696,67731.0,67730.0,0.25274012]
[1729252649508,0.015696,67731.0,67730.0,0.24774012]
[1729252650180,0.015696,67731.0,67730.0,0.10009512]
[1729252650420,0.163338,67731.0,67730.0,0.10009512]
[1729252650639,0.015696,67731.0,67730.0,0.24774012]
[1729252650869,0.015696,67731.0,67730.0,0.12224424]
[1729252651085,0.015696,67731.0,67730.0,0.01150212]
[1729252651314,0.015696,67731.0,67730.0,0.26988924]
[1729252651555,0.015696,67731.0,67730.0,0.02698122]
[1729252651764,0.015696,67731.0,67730.0,0.1377211]
[1729252652934,0.163338,67731.0,67730.0,0.1377211]
[1729252654429,0.163338,67731.0,67730.0,0.01150212]
[1729252654849,0.163338,67731.0,67730.0,0.1377245]
[1729252656081,0.156338,67731.0,67730.0,0.1377245]
[1729252656542,0.154338,67731.0,67730.0,0.13772467]
[1729252656758,0.159338,67731.0,67730.0,0.13772467]
[1729252657927,0.159338,67731.0,67730.0,0.01150212]
[1729252658535,0.159338,67731.0,67730.0,0.11256815]
[1729252658797,0.159338,67731.0,67730.0,0.13772587]
[1729252659433,0.011696,67731.0,67730.0,0.13772587]
[1729252659670,0.159338,67731.0,67730.0,0.02698572]
[1729252659935,0.159338,67731.0,67730.0,0.13772758]
[1729252660159,0.011696,67731.0,67730.0,0.13772758]
[1729252660370,0.011696,67731.0,67730.0,0.01150385]
[1729252660579,0.159338,67731.0,67730.0,0.13772725]
[1729252661436,0.159338,67731.0,67730.0,0.1377301]
[1729252662493,0.159338,67731.0,67730.0,0.13772965]
[1729252663726,0.159338,67731.0,67730.0,0.01150355]
[1729252665023,0.159338,67731.0,67730.0,0.12224826]
[1729252666321,0.159338,67731.0,67730.0,0.01150366]
[1729252666531,0.159338,67731.0,67730.0,0.001828]
[1729252666741,0.159338,67731.0,67730.0,0.01150376]
[1729252667687,0.159338,67731.0,67730.0,0.12225892]
[1729252668112,0.159338,67731.0,67730.0,0.01150376]
[1729252668551,0.159338,67731.0,67730.0,0.12225892]
[1729252668768,0.159338,67731.0,67730.0,0.01150376]
[1729252669209,0.149338,67731.0,67730.0,0.01150376]
[1729252669424,0.155338,67731.0,67730.0,0.01150376]
[1729252669641,0.162338,67731.0,67730.0,0.01150376]
[1729252669855,0.156338,67731.0,67730.0,0.01150376]
[1729252670068,0.157338,67731.0,67730.0,0.01150376]
[1729252672148,0.165338,67731.0,67730.0,0.01150376]
[1729252672346,0.165338,67731.0,67730.0,0.10012082]
[1729252673146,0.165338,67731.0,67730.0,0.01150376]
[1729252673736,0.165338,67731.0,67730.0,0.10012082]
[1729252674358,0.165338,67731.0,67730.0,0.01150376]
[1729252674564,0.165338,67731.0,67730.0,0.10012082]
[1729252675243,0.165338,67731.0,67730.0,0.01150376]
[1729252677117,0.19570156,67731.0,67730.0,0.01150376]
[1729252677467,0.19570156,67731.0,67730.0,0.07796367]
[1729252677670,0.170338,67731.0,67730.0,0.07796243]
[1729252677885,0.170338,67731.0,67730.0,0.01150316]
[1729252678762,0.170338,67731.0,67730.0,0.07796142]
[1729252679404,0.170338,67731.0,67730.0,0.01150316]
[1729252679621,0.170338,67731.0,67730.0,0.07796069]
[1729252680058,0.170338,67731.0,67730.0,0.05580974]
[1729252680271,0.170338,67731.0,67730.0,0.001828]
[1729252680695,0.170338,67731.0,67730.0,0.01150258]
[1729252680909,0.170338,67731.0,67730.0,0.07796103]
[1729252684429,0.170338,67731.0,67730.0,0.06828645]
[1729252684646,0.170338,67731.0,67730.0,0.07795707]
[1729252684875,0.165338,67731.0,67730.0,0.07795707]
[1729252685329,0.165338,67731.0,67730.0,0.01150227]
[1729252686655,0.165338,67731.0,67730.0,0.07795544]
[1729252687738,0.341638,67731.0,67730.0,0.06828117]
[1729252687969,0.341638,67731.0,67730.0,0.001828]
[1729252690401,0.336638,67731.0,67730.0,0.001828]
[1729252690507,0.341638,67731.0,67730.0,0.001828]
[1729252692033,0.56239505,67731.0,67730.0,0.001828]
[1729252692255,0.346638,67731.0,67730.0,0.001828]
[1729252692472,0.46199333,67731.0,67730.0,0.001828]
[1729252692691,0.346638,67731.0,67730.0,0.001828]
[1729252692923,0.165338,67731.0,67730.0,0.001828]
[1729252693365,0.017696,67731.0,67730.0,0.001828]
[1729252693618,0.165338,67731.0,67730.0,0.001828]
[1729252701856,0.017696,67731.0,67730.0,0.19374259]
[1729252702118,0.017696,67731.0,67730.0,0.24768239]
[1729252702343,0.017696,67731.0,67730.0,0.15914321]
[1729252702991,0.001696,67731.0,67730.0,0.24768079]
[1729252703216,0.001696,67731.0,67730.0,0.10003579]
[1729252703217,0.006696,67731.0,67730.0,0.10003579]
[1729252704295,0.012696,67731.0,67730.0,0.10003579]
[1729252704742,0.341838,67731.0,67730.0,0.001828]
[1729252708368,0.45719333,67731.0,67730.0,0.001828]
[1729252708578,0.341838,67731.0,67730.0,0.001828]
[1729252708789,0.45719333,67731.0,67730.0,0.001828]
[1729252710100,0.160338,67731.0,67730.0,0.001828]
[1729252710327,0.160338,67731.0,67730.0,0.077903]
[1729252711705,0.160338,67731.0,67730.0,0.07790264]
[1729252712425,0.160338,67731.0,67730.0,0.05700564]
[1729252713368,0.160338,67731.0,67721.0,0.42813577]
[1729252713369,0.005,67727.0,67725.0,0.08853758]
[1729252713620,0.093396,67731.0,67724.0,0.11067397]
[1729252713621,0.20875133,67731.0,67726.0,0.00966755]
[1729252713865,0.29529,67730.0,67728.0,0.04427381]
[1729252714095,0.147649,67728.0,67727.0,0.04427381]
[1729252714328,0.087396,67731.0,67727.0,0.00966718]
[1729252714558,0.087396,67731.0,67723.0,0.11068453]
[1729252714559,0.29529,67730.0,67729.0,0.04427287]
[1729252714795,0.29529,67730.0,67725.0,0.08854763]
[1729252714796,0.147647,67729.0,67728.0,0.04427287]
[1729252715026,0.29529,67730.0,67726.0,0.08854763]
[1729252715264,0.29529,67730.0,67727.0,0.00966726]
[1729252715492,0.29529,67730.0,67728.0,0.0442738]
[1729252715493,0.147647,67729.0,67728.0,0.0442738]
[1729252716560,0.300981,67731.0,67725.0,0.08854763]
[1729252716561,0.004696,67731.0,67725.0,0.08854763]
[1729252716804,0.147653,67726.0,67725.0,0.08854763]
[1729252717036,0.147653,67726.0,67725.0,0.00966774]
[1729252717538,0.147653,67726.0,67725.0,0.09821537]
[1729252718925,0.001,67726.0,67725.0,0.09821537]
[1729252719151,0.148653,67726.0,67725.0,0.09822003]
[1729252719621,0.148653,67726.0,67725.0,0.09822084]
[1729252721325,0.001,67726.0,67725.0,0.09822084]
[1729252721550,0.148653,67726.0,67725.0,0.09822084]
[1729252721768,0.148653,67726.0,67725.0,0.00966855]
[1729252724323,0.147653,67726.0,67725.0,0.09822178]
[1729252724572,0.148653,67726.0,67725.0,0.09822178]
[1729252724989,0.147653,67726.0,67725.0,0.09822178]
[1729252725337,0.151653,67726.0,67725.0,0.09822178]
[1729252725933,0.154653,67726.0,67725.0,0.09822178]
[1729252727684,0.154653,67726.0,67725.0,0.00966855]
[1729252727905,0.154653,67726.0,67725.0,0.0760878]
[1729252728129,0.234253,67726.0,67725.0,0.04428102]
[1729252728368,0.234253,67726.0,67723.0,0.06641925]
[1729252728369,0.147655,67725.0,67724.0,0.04428102]
[1729252728592,0.147655,67725.0,67722.0,0.04428102]
[1729252728593,0.41066733,67725.0,67722.0,0.04428102]
[1729252728800,0.14766,67723.0,67722.0,0.04428102]
[1729252730309,0.14766,67723.0,67720.0,0.06641925]
[1729252730310,0.005,67722.0,67720.0,0.04428102]
[1729252730510,0.295321,67723.0,67719.0,0.04428102]
[1729252730511,0.0852,67721.0,67719.0,0.04428102]
[1729252730717,0.26302133,67720.0,67719.0,0.04428102]
[1729252730922,0.37837666,67720.0,67719.0,0.04428102]
[1729252731343,0.147666,67720.0,67719.0,0.04428102]
[1729252731746,0.147666,67720.0,67718.0,0.00032412]
[1729252731747,0.23071066,67720.0,67718.0,0.04460514]
[1729252731958,0.147669,67719.0,67718.0,0.04460514]
[1729252732596,0.147669,67719.0,67718.0,0.00032412]
[1729252733012,0.147669,67719.0,67718.0,0.00132412]
[1729252733460,0.147669,67719.0,67718.0,0.00032412]
[1729252733693,0.147669,67719.0,67718.0,0.00132412]
[1729252734636,0.37837966,67719.0,67718.0,0.00132412]
[1729252735971,0.147677,67715.0,67714.0,0.04141627]
[1729252736179,0.26303233,67715.0,67714.0,0.04141627]
[1729252736628,0.29536,67714.0,67711.0,0.08442173]
[1729252736867,0.26303933,67712.0,67711.0,0.08442173]
[1729252737076,0.26303933,67712.0,67711.0,0.09408302]
[1729252737495,0.11535533,67712.0,67711.0,0.09408302]
[1729252737909,0.26303933,67712.0,67711.0,0.09408302]
[1729252738127,0.26303933,67712.0,67711.0,0.09404617]
[1729252739707,0.26303933,67712.0,67711.0,0.02851379]
[1729252739962,0.147684,67712.0,67711.0,0.02851379]
[1729252740183,0.26303933,67712.0,67711.0,0.0188525]
[1729252740393,0.11535533,67712.0,67711.0,0.0188525]
[1729252740637,0.14868,67714.0,67711.0,0.0188525]
[1729252740638,0.295361,67714.0,67711.0,0.0188525]
[1729252740876,0.148684,67712.0,67711.0,0.0188525]
[1729252741105,0.26503933,67712.0,67711.0,0.03379117]
[1729252741314,0.26503933,67712.0,67711.0,0.10015055]
[1729252741534,0.26403933,67712.0,67711.0,0.10015055]
[1729252741751,0.11635533,67712.0,67711.0,0.10015055]
[1729252742217,0.001,67712.0,67711.0,0.10015055]
[1729252742432,0.11635533,67712.0,67711.0,0.10015055]
[1729252742646,0.11635533,67712.0,67711.0,0.03379117]
[1729252742868,0.11735533,67712.0,67711.0,0.10015055]
[1729252743961,0.002,67712.0,67711.0,0.10015055]
[1729252744174,0.11735533,67712.0,67711.0,0.10015055]
[1729252744645,0.11735533,67712.0,67711.0,0.10015104]
[1729252744853,0.26503933,67712.0,67711.0,0.10015104]
[1729252745076,0.11735533,67712.0,67711.0,0.10015104]
[1729252745287,0.26503933,67712.0,67711.0,0.10015104]
[1729252746416,0.26503933,67712.0,67711.0,0.10011682]
[1729252746644,0.11735533,67712.0,67711.0,0.10011682]
[1729252746851,0.26503933,67712.0,67711.0,0.10011682]
[1729252747611,0.26503933,67712.0,67711.0,0.03379166]
[1729252747820,0.26503933,67712.0,67711.0,0.10011682]
[1729252748280,0.26503933,67712.0,67711.0,0.03379166]
[1729252748492,0.26503933,67712.0,67711.0,0.10011682]
[1729252749570,0.002,67712.0,67711.0,0.10011682]
[1729252751018,0.149684,67712.0,67711.0,0.10011682]
[1729252751232,0.002,67712.0,67711.0,0.10011682]
[1729252753815,0.149684,67712.0,67711.0,0.10011682]
[1729252754234,0.149684,67712.0,67711.0,0.10011899]
[1729252756120,0.149684,67712.0,67711.0,0.09046086]
[1729252756325,0.149684,67712.0,67711.0,0.03380391]
[1729252756526,0.149684,67712.0,67711.0,0.10013124]
[1729252756728,0.149684,67712.0,67711.0,0.03380391]
[1729252756953,0.149684,67712.0,67711.0,0.10013124]
[1729252761164,0.149684,67712.0,67711.0,0.03380391]
[1729252761385,0.154684,67712.0,67711.0,0.03380391]
[1729252761612,0.154684,67712.0,67711.0,0.0188525]
[1729252761825,0.27003933,67712.0,67711.0,0.02853244]
[1729252762040,0.153684,67712.0,67711.0,0.02853244]
[1729252762274,0.26903933,67712.0,67711.0,0.02853244]
[1729252762492,0.27003933,67712.0,67711.0,0.02853244]
[1729252762933,0.26903933,67712.0,67711.0,0.02853244]
[1729252763151,0.27603933,67712.0,67711.0,0.02853244]
[1729252764061,0.27603933,67712.0,67711.0,0.02853029]
[1729252764274,0.27503933,67712.0,67711.0,0.02853029]
[1729252764634,0.28303933,67712.0,67711.0,0.02853029]
[1729252765854,0.28303933,67712.0,67711.0,0.02851248]
[1729252767034,0.172684,67712.0,67711.0,0.02851248]
[1729252767263,0.28803933,67712.0,67711.0,0.0188525]
[1729252767999,0.172684,67712.0,67711.0,0.0188525]
[1729252768211,0.28803933,67712.0,67711.0,0.0188525]
[1729252768443,0.78139638,67712.0,67711.0,0.0188525]
[1729252768652,0.445284,67712.0,67711.0,0.0188525]
[1729252769097,0.56063933,67712.0,67711.0,0.0188525]
[1729252769316,0.349184,67712.0,67711.0,0.0188525]
[1729252769545,0.167684,67712.0,67711.0,0.0188525]
[1729252769760,0.167684,67712.0,67711.0,0.0285062]
[1729252770216,0.167684,67712.0,67711.0,0.03851068]
[1729252770710,0.167684,67712.0,67711.0,0.08275038]
[1729252772636,0.167684,67712.0,67711.0,0.03851068]
[1729252772819,0.28303933,67712.0,67711.0,0.03851068]
[1729252773694,0.28303933,67712.0,67711.0,0.10487023]
[1729252773915,0.167684,67712.0,67711.0,0.10487023]
[1729252775109,0.28303933,67712.0,67711.0,0.02885698]
[1729252775571,0.28303933,67712.0,67711.0,0.02413353]
[1729252775804,0.28303933,67712.0,67711.0,0.0188525]
[1729252776056,0.28803933,67712.0,67711.0,0.0188525]
[1729252776322,0.37123933,67712.0,67711.0,0.0188525]
[1729252777517,0.56303933,67712.0,67711.0,0.0188525]
[1729252779864,0.37123933,67712.0,67711.0,0.0188525]
[1729252781008,0.36623933,67712.0,67711.0,0.0188525]
[1729252781222,0.37123933,67712.0,67711.0,0.0188525]
[1729252782384,0.36623933,67712.0,67711.0,0.0188525]
[1729252782599,0.37123933,67712.0,67711.0,0.0188525]
[1729252787940,0.37127933,67712.0,67711.0,0.0188525]
[1729252789072,0.255924,67712.0,67711.0,0.0188525]
[1729252789294,0.37127933,67712.0,67711.0,0.0188525]
[1729252793779,0.01504,67712.0,67711.0,0.06310784]
[1729252794023,0.01504,67712.0,67711.0,0.50689133]
[1729252794238,0.01504,67712.0,67711.0,0.45051279]
[1729252795340,0.00704,67712.0,67711.0,0.45051279]
[1729252795962,0.00704,67712.0,67711.0,0.45251279]
[1729252796175,0.00704,67712.0,67711.0,0.54681279]
[1729252796406,4e-05,67712.0,67711.0,0.99806812]
[1729252796631,4e-05,67712.0,67711.0,0.88271279]
[1729252796842,0.00104,67712.0,67711.0,1.079581]
[1729252797063,4e-05,67712.0,67711.0,1.078581]
[1729252797280,4e-05,67712.0,67711.0,0.88271279]
[1729252797493,0.00204,67712.0,67711.0,1.081581]
[1729252797700,0.00204,67712.0,67711.0,0.88571279]
[1729252801142,0.00204,67712.0,67711.0,0.88568954]
[1729252802491,0.00204,67712.0,67711.0,1.50104487]
[1729252802943,0.00204,67712.0,67711.0,1.60104487]
[1729252803173,0.27066395,67728.0,67727.0,0.147651]
[1729252803406,0.27066395,67728.0,67727.0,0.3628336]
[1729252803650,0.22075705,67728.0,67727.0,0.3628336]
[1729252803882,0.001696,67731.0,67727.0,0.3628336]
[1729252803883,0.001696,67731.0,67730.0,0.147645]
[1729252804113,0.001696,67731.0,67730.0,0.29660415]
[1729252805549,0.11705133,67731.0,67726.0,0.04413448]
[1729252805780,0.11535533,67728.0,67724.0,0.147656]
[1729252806018,0.11535533,67728.0,67724.0,0.14895915]
[1729252806254,0.26300433,67728.0,67725.0,0.147654]
[1729252806493,0.11535533,67728.0,67725.0,0.147654]
[1729252806732,0.11535533,67728.0,67724.0,0.14895915]
[1729252806965,0.22075705,67726.0,67725.0,0.147655]
[1729252807205,0.22075705,67726.0,67719.0,0.005]
[1729252807206,0.14766,67723.0,67718.0,0.04413448]
[1729252807437,0.19555533,67725.0,67718.0,0.04413448]
[1729252807438,0.11535533,67719.0,67718.0,0.34076463]
[1729252807671,0.11535533,67719.0,67718.0,0.29663015]
[1729252807901,0.0802,67725.0,67718.0,0.44429915]
[1729252808142,0.0802,67725.0,67721.0,0.295328]
[1729252808382,0.005,67730.0,67727.0,0.147651]
[1729252808624,0.005,67728.0,67727.0,0.147651]
[1729252808901,0.005,67728.0,67724.0,0.295313]
[1729252809124,0.005,67728.0,67727.0,0.147651]
[1729252809545,0.005,67729.0,67726.0,0.295303]
[1729252809757,0.001696,67731.0,67725.0,0.29826378]
[1729252809974,0.006696,67731.0,67727.0,0.295299]
[1729252810194,0.005,67730.0,67729.0,0.147645]
[1729252811525,0.001696,67731.0,67729.0,0.147645]
[1729252811742,0.005,67730.0,67726.0,0.14895915]
[1729252811960,0.005,67728.0,67727.0,0.14765]
[1729252812173,0.005,67728.0,67727.0,0.29660915]
[1729252812386,0.005,67728.0,67727.0,0.29661015]
[1729252813268,0.006656,67728.0,67727.0,0.29661015]
[1729252813689,0.006656,67728.0,67727.0,0.14895915]
[1729252813926,0.006656,67728.0,67727.0,0.29661015]
[1729252814365,0.010656,67728.0,67727.0,0.29661015]
[1729252814582,0.010656,67728.0,67727.0,0.29956288]
[1729252814797,0.010656,67728.0,67727.0,0.29861015]
[1729252815224,0.010656,67728.0,67727.0,0.30156269]
[1729252815225,0.018656,67728.0,67727.0,0.30156269]
[1729252815436,0.018696,67728.0,67727.0,0.29661015]
[1729252816076,0.010696,67728.0,67727.0,0.29661015]
[1729252816571,0.008696,67728.0,67727.0,0.29661015]
[1729252816995,0.016696,67728.0,67727.0,0.29661015]
[1729252817448,0.016696,67728.0,67727.0,0.39551015]
[1729252818126,0.016696,67728.0,67727.0,0.40729707]
[1729252818352,0.016696,67728.0,67727.0,0.40529707]
[1729252818562,0.016696,67728.0,67727.0,0.40729707]
[1729252818986,0.016696,67728.0,67727.0,0.65729707]
[1729252819205,0.016696,67728.0,67727.0,0.797585]
[1729252819418,0.016696,67728.0,67727.0,0.75351749]
[1729252819652,0.016696,67728.0,67727.0,0.86368626]
[1729252819861,0.001696,67728.0,67727.0,0.75351749]
[1729252820098,0.002696,67728.0,67727.0,0.75551749]
[1729252820547,0.002696,67728.0,67727.0,0.75351749]
[1729252820548,0.001696,67728.0,67727.0,0.75351749]
[1729252821031,0.002696,67728.0,67727.0,0.75551749]
[1729252821481,0.002696,67728.0,67727.0,0.75951749]
[1729252821482,0.003696,67728.0,67727.0,0.75951749]
[1729252821695,0.002696,67728.0,67727.0,0.75551749]
[1729252822133,0.003696,67728.0,67727.0,0.75951749]
[1729252822351,0.003696,67728.0,67727.0,0.86957703]
[1729252824068,0.003696,67728.0,67727.0,0.86959633]
[1729252824960,0.003696,67728.0,67727.0,0.75953679]
[1729252825167,0.003696,67728.0,67727.0,0.86959633]
[1729252825385,0.003696,67728.0,67727.0,0.75953679]
[1729252825593,0.003696,67728.0,67727.0,0.86959633]
[1729252826009,0.003696,67728.0,67727.0,0.75753679]
[1729252826243,0.003696,67728.0,67727.0,0.84556689]
[1729252826465,0.003696,67728.0,67727.0,0.84756689]
[1729252827115,0.003696,67728.0,67727.0,0.75753679]
[1729252827116,0.002696,67728.0,67727.0,0.75753679]
[1729252827330,0.002696,67728.0,67727.0,0.38605937]
[1729252827567,0.002696,67728.0,67727.0,0.2154016]
[1729252827783,0.002696,67728.0,67727.0,0.31903679]
[1729252828031,0.003696,67728.0,67727.0,0.32303679]
[1729252828250,0.002696,67728.0,67727.0,0.31903679]
[1729252828696,0.002696,67728.0,67727.0,0.32303679]
[1729252828697,0.003696,67728.0,67727.0,0.32303679]
[1729252828943,0.06952801,67730.0,67729.0,0.147647]
[1729252829161,0.06952801,67730.0,67729.0,0.30624587]
[1729252829403,0.06952801,67730.0,67729.0,0.3160056]
[1729252830711,0.06952801,67730.0,67729.0,0.3170056]
[1729252831589,0.06952801,67730.0,67729.0,0.3190056]
[1729252832033,0.001696,67731.0,67730.0,0.147645]
[1729252832255,0.001696,67731.0,67730.0,0.30624953]
[1729252832948,0.001696,67731.0,67730.0,0.31089012]
[1729252834138,0.001696,67731.0,67730.0,0.31189012]
[1729252835577,0.001696,67731.0,67730.0,0.30224474]
[1729252835782,0.001696,67731.0,67730.0,0.31188988]
[1729252836649,0.001696,67731.0,67730.0,0.35596244]
[1729252837412,0.001696,67731.0,67730.0,0.31699543]
[1729252837852,0.001696,67731.0,67730.0,0.53775248]
[1729252838035,0.001696,67731.0,67730.0,0.40514055]
[1729252838455,0.001696,67731.0,67730.0,0.42917683]
[1729252839251,0.001696,67731.0,67730.0,0.31899543]
[1729252841639,0.001696,67731.0,67730.0,0.32490143]
[1729252843140,0.001696,67731.0,67730.0,0.32990143]
[1729252843382,0.001696,67731.0,67730.0,0.32490143]
[1729252844975,0.001696,67731.0,67730.0,0.32390143]
[1729252845408,0.002696,67731.0,67730.0,0.32790143]
[1729252846087,0.003696,67731.0,67730.0,0.32990143]
[1729252846740,0.003696,67731.0,67730.0,0.33190143]
[1729252847166,0.003696,67731.0,67730.0,0.32225629]
[1729252848268,0.003696,67731.0,67730.0,0.32025629]
[1729252849148,0.003696,67731.0,67730.0,0.4624354]
[1729252849385,0.003696,67731.0,67730.0,0.32399854]
[1729252849606,0.003696,67731.0,67730.0,0.32399871]
[1729252850574,0.003696,67731.0,67730.0,0.32599871]
[1729252850804,0.003696,67731.0,67730.0,0.32399871]
[1729252851933,0.002696,67731.0,67730.0,0.31999871]
[1729252852144,0.002696,67731.0,67730.0,0.32199871]
[1729252852572,0.001696,67731.0,67730.0,0.32099871]
[1729252852987,0.001696,67731.0,67730.0,0.31599871]
[1729252853437,0.002696,67731.0,67730.0,0.31599871]
[1729252855137,0.002696,67731.0,67730.0,0.32199871]
[1729252855346,0.001696,67731.0,67730.0,0.31599871]
[1729252855790,0.001696,67731.0,67730.0,0.31899871]
[1729252856005,0.002696,67731.0,67730.0,0.32499871]
[1729252856483,0.002696,67731.0,67730.0,0.45952957]
[1729252857128,0.001696,67731.0,67730.0,0.45352957]
[1729252857986,0.001696,67731.0,67730.0,0.56895168]
[1729252858195,0.001696,67731.0,67730.0,0.44232582]
[1729252858644,0.001696,67731.0,67730.0,0.44532582]
[1729252859103,0.001696,67731.0,67730.0,0.32790371]
[1729252860722,0.001696,67731.0,67730.0,0.31825529]
[1729252860953,0.098796,67731.0,67730.0,0.30702226]
[1729252861181,0.326938,67731.0,67730.0,0.11385027]
[1729252861408,0.326938,67731.0,67730.0,0.02539397]
[1729252861628,0.326938,67731.0,67730.0,0.09173899]
[1729252861848,0.326938,67731.0,67730.0,0.09256599]
[1729252862075,0.179296,67731.0,67730.0,0.08656599]
[1729252862289,0.326938,67731.0,67730.0,0.08656599]
[1729252862510,0.326938,67731.0,67730.0,0.08956599]
[1729252862758,0.179296,67731.0,67730.0,0.08956599]
[1729252862943,0.179296,67731.0,67730.0,0.08656599]
[1729252864474,0.179296,67731.0,67730.0,0.07691816]
[1729252864707,0.179296,67731.0,67730.0,0.01057314]
[1729252864920,0.179296,67731.0,67730.0,0.25630695]
[1729252865134,0.179296,67731.0,67730.0,0.27842656]
[1729252865364,0.082196,67731.0,67730.0,0.27842656]
[1729252866899,0.082196,67731.0,67730.0,0.13078156]